fUSD/lending_fUSD_20260504
["ID","MTS","AMOUNT","RATE_DAILY","PERIOD"]
[421537510,1777834232000,-1087.4435,0.00014899,2]
[421537506,1777834232000,-5388.63216993,0.0001425,2]
[421537516,1777834232000,-838.6075392,0.00014999,2]
[421537530,1777834232000,152.0,0.00010746,7]
[421537531,1777834233000,152.0,0.00010746,7]
[421537532,1777834234000,152.0,0.00010746,7]
[421537533,1777834234000,152.0,0.00010746,7]
[421537534,1777834235000,152.0,0.00010749,7]
[421537535,1777834236000,152.0,0.00010749,7]
[421537540,1777834237000,152.0,0.00010749,7]
[421537536,1777834237000,152.0,0.00010749,7]
[421537541,1777834238000,152.0,0.00010749,7]
[421537568,1777834240000,-400.0,0.00018921,2]
[421537570,1777834240000,-212.48,0.00019237,2]
[421537573,1777834240000,-212.48,0.00020986,2]
[421537575,1777834240000,-12321.3961722,0.0002153,2]
[421537577,1777834240000,-5000.0,0.00021918,2]
[421537579,1777834240000,-180.42,0.00022545,2]
[421537580,1777834240000,-639.22,0.00022562,2]
[421537578,1777834240000,-283.14555674,0.00021918,10]
[421537576,1777834240000,-162.51,0.00021716,2]
[421537574,1777834240000,-48320.12025606,0.00021,2]
[421537584,1777834240000,-1328.27659266,0.00023445,2]
[421537581,1777834240000,-659.11,0.00022562,2]
[421537583,1777834240000,-500.0,0.00022932,2]
[421537591,1777834240000,-234.04,0.00024658,2]
[421537585,1777834240000,-156.53338377,0.00023445,2]
[421537588,1777834240000,-2749.2751011,0.00023944,2]
[421537586,1777834240000,-151.56277928,0.00023445,2]
[421537587,1777834240000,-162.51,0.00023526,2]
[421537596,1777834240000,-333.0,0.00026591,5]
[421537590,1777834240000,-162.45035992,0.00024366,2]
[421537593,1777834240000,-162.51,0.00025335,2]
[421537567,1777834240000,-2636.33,0.00018856,2]
[421537582,1777834240000,-2272.69,0.00022562,2]
[421537569,1777834240000,-363.20048903,0.0001901,7]
[421537549,1777834240000,-14882.0426474,0.00016285,2]
[421537562,1777834240000,-162.51,0.00018097,2]
[421537589,1777834240000,-507.47267334,0.00023993,2]
[421537548,1777834240000,-400.0,0.00015767,2]
[421537547,1777834240000,-212.48,0.00015739,2]
[421537545,1777834240000,-200.0,0.0001501,2]
[421537546,1777834240000,-320.0,0.00015698,2]
[421537551,1777834240000,-166.66,0.00016805,2]
[421537550,1777834240000,-282.66,0.000163,2]
[421537553,1777834240000,-360.85,0.00017342,2]
[421537552,1777834240000,-320.0,0.00017268,2]
[421537558,1777834240000,-400.0,0.00017344,2]
[421537564,1777834240000,-320.0,0.00018838,2]
[421537554,1777834240000,-500.0,0.00017343,2]
[421537557,1777834240000,-504.54907061,0.00017343,2]
[421537555,1777834240000,-500.0,0.00017343,2]
[421537559,1777834240000,-212.48,0.00017488,2]
[421537560,1777834240000,-3250.98,0.00017568,2]
[421537561,1777834240000,-150.0,0.00017589,2]
[421537571,1777834240000,-162.51,0.00019906,2]
[421537572,1777834240000,-15098.73212087,0.0002,2]
[421537566,1777834240000,-764.57,0.00018856,2]
[421537565,1777834240000,-741.5,0.00018856,2]
[421537563,1777834240000,-189.03,0.00018529,2]
[421537556,1777834240000,-500.0,0.00017343,2]
[421537595,1777834240000,-180.42,0.00026013,2]
[421537544,1777834240000,-190563.98675115,0.00015,2]
[421537594,1777834240000,-2561.00451372,0.0002589,5]
[421537638,1777834240000,-8562.044494,0.00033522,2]
[421537634,1777834240000,-635.76,0.000332,30]
[421537629,1777834240000,-3548.0363492,0.0003287,7]
[421537636,1777834240000,-8019.876841,0.00033522,2]
[421537640,1777834240000,-1552.1382105,0.00033527,2]
[421537643,1777834240000,-151.0,0.00033527,7]
[421537645,1777834240000,-1049.0,0.00033616,2]
[421537647,1777834240000,-3531.0,0.00033616,2]
[421537649,1777834240000,-1351.0,0.00033616,2]
[421537659,1777834240000,-274.930017,0.00033616,7]
[421537661,1777834240000,-274.930017,0.00033616,7]
[421537657,1777834240000,-274.930017,0.00033616,7]
[421537655,1777834240000,-994.0,0.00033616,2]
[421537651,1777834240000,-150.0,0.00033616,2]
[421537663,1777834240000,-152.0,0.00033674,3]
[421537665,1777834240000,-250.0,0.00033959,7]
[421537667,1777834240000,-13436.6,0.00034,7]
[421537671,1777834240000,-307.0,0.000341,2]
[421537669,1777834240000,-843.0,0.000341,2]
[421537677,1777834240000,-2176.39023779,0.00035,7]
[421537673,1777834240000,-3893.332,0.00034712,39]
[421537675,1777834240000,-562.06,0.000348,30]
[421537592,1777834240000,-1501.93077749,0.00025,3]
[421537627,1777834240000,-3000.0,0.00032548,30]
[421537632,1777834240000,-419.0,0.00032883,5]
[421537653,1777834240000,-150.0,0.00033616,2]
[421537624,1777834240000,-562.06,0.00032,7]
[421537598,1777834240000,-999.99,0.00026591,2]
[421537625,1777834240000,-519.0,0.00032423,7]
[421537600,1777834240000,-4264.49,0.00026591,2]
[421537603,1777834240000,-162.51,0.00027145,2]
[421537597,1777834240000,-10927.43,0.00026591,2]
[421537599,1777834240000,-299.99,0.00026591,12]
[421537604,1777834240000,-5000.0,0.000273,2]
[421537601,1777834240000,-519.0,0.00027137,2]
[421537602,1777834240000,-260.0,0.00027145,5]
[421537605,1777834240000,-13436.6,0.000274,7]
[421537608,1777834240000,-162.51,0.00028955,2]
[421537606,1777834240000,-159.93,0.00028,2]
[421537613,1777834240000,-635.76,0.0003,7]
[421537616,1777834240000,-6956.200854,0.00030147,2]
[421537607,1777834240000,-562.06,0.000281,7]
[421537615,1777834240000,-38372.4212287,0.00030143,2]
[421537617,1777834240000,-13436.6,0.000311,7]
[421537614,1777834240000,-35942.5943838,0.00030143,2]
[421537622,1777834240000,-169.04730019,0.00032,120]
[421537611,1777834240000,-155.4336307,0.00029907,2]
[421537612,1777834240000,-38017.49703123,0.0003,10]
[421537619,1777834240000,-237.7711042,0.000317,2]
[421537609,1777834240000,-613.0,0.00029507,2]
[421537610,1777834240000,-200.0,0.0002972,2]
[421537745,1777834241000,-450.74402986,0.00038231,2]
[421537742,1777834241000,-462.67536322,0.00038231,2]
[421537750,1777834241000,-309.0528839,0.00038231,2]
[421537744,1777834241000,-433.53989763,0.00038231,2]
[421537739,1777834241000,-308.80035792,0.00038231,2]
[421537736,1777834241000,-343.10293342,0.00038231,2]
[421537730,1777834241000,-300.0,0.00038231,2]
[421537731,1777834241000,-300.0,0.00038231,2]
[421537732,1777834241000,-300.0,0.00038231,2]
[421537729,1777834241000,-300.0,0.00038231,2]
[421537747,1777834241000,-300.0,0.00038231,2]
[421537740,1777834241000,-862.2151725,0.00038231,2]
[421537748,1777834241000,-300.0,0.00038231,2]
[421537757,1777834241000,-300.0,0.00038231,2]
[421537746,1777834241000,-300.0,0.00038231,2]
[421537743,1777834241000,-300.0,0.00038231,2]
[421537741,1777834241000,-310.10110385,0.00038231,2]
[421537751,1777834241000,-300.0,0.00038231,2]
[421537753,1777834241000,-1091.89164942,0.00038231,2]
[421537763,1777834241000,-891.13316488,0.00038231,2]
[421537764,1777834241000,-308.86043429,0.00038231,2]
[421537752,1777834241000,-300.0,0.00038231,2]
[421537756,1777834241000,-491.42621558,0.00038231,2]
[421537762,1777834241000,-1064.20055128,0.00038231,2]
[421537759,1777834241000,-602.92697109,0.00038231,2]
[421537754,1777834241000,-300.0,0.00038231,2]
[421537735,1777834241000,-300.0,0.00038231,2]
[421537749,1777834241000,-482.8546576,0.00038231,2]
[421537738,1777834241000,-1144.24336667,0.00038231,2]
[421537691,1777834241000,-1351.0,0.00036616,2]
[421537728,1777834241000,-301.02040482,0.00038231,2]
[421537681,1777834241000,-635.76,0.000358,30]
[421537683,1777834241000,-150.0,0.00035975,7]
[421537685,1777834241000,-150.0,0.00035975,7]
[421537679,1777834241000,-1345.54020633,0.00035276,4]
[421537687,1777834241000,-150.0,0.00035975,7]
[421537761,1777834241000,-526.39557632,0.00038231,2]
[421537689,1777834241000,-1049.0,0.00036616,2]
[421537693,1777834241000,-150.0,0.00036616,2]
[421537694,1777834241000,-13436.6,0.000367,7]
[421537706,1777834241000,-519.0,0.0003771,13]
[421537708,1777834241000,-562.06,0.000378,30]
[421537697,1777834241000,-150.0,0.00036775,7]
[421537713,1777834241000,-442.0,0.00037966,30]
[421537727,1777834241000,-250.0,0.00038204,7]
[421537709,1777834241000,-500.0,0.000379,7]
[421537704,1777834241000,-150.0,0.00037574,7]
[421537702,1777834241000,-700.0,0.00037519,2]
[421537698,1777834241000,-2033.42352497,0.00036911,120]
[421537700,1777834241000,-3000.0,0.00036932,30]
[421537715,1777834241000,-186.0,0.00038,30]
[421537717,1777834241000,-2129.826,0.00038019,2]
[421537720,1777834241000,-383.53,0.00038034,30]
[421537719,1777834241000,-2016.79,0.00038019,2]
[421537723,1777834241000,-1363.62,0.00038034,30]
[421537734,1777834241000,-1791.83489269,0.00038231,2]
[421537725,1777834241000,-635.76,0.000381,30]
[421537737,1777834241000,-300.0,0.00038231,2]
[421537733,1777834241000,-852.02203048,0.00038231,2]
[421537711,1777834241000,-547.18,0.000379,7]
[421537755,1777834241000,-300.0,0.00038231,2]
[421537721,1777834241000,-395.46,0.00038034,30]
[421537758,1777834241000,-300.0,0.00038231,2]
[421537798,1777834241000,-300.0,0.00038231,2]
[421537794,1777834241000,-300.0,0.00038231,2]
[421537803,1777834241000,-891.13316488,0.00038231,2]
[421537805,1777834241000,-308.86043429,0.00038231,2]
[421537804,1777834241000,-1064.20055128,0.00038231,2]
[421537808,1777834241000,-300.0,0.00038231,2]
[421537814,1777834241000,-343.10293342,0.00038231,2]
[421537807,1777834241000,-301.02040482,0.00038231,2]
[421537810,1777834241000,-300.0,0.00038231,2]
[421537806,1777834241000,-724.19402235,0.00038231,2]
[421537813,1777834241000,-1791.83489269,0.00038231,2]
[421537809,1777834241000,-300.0,0.00038231,2]
[421537812,1777834241000,-852.02203048,0.00038231,2]
[421537792,1777834241000,-300.0,0.00038231,2]
[421537811,1777834241000,-300.0,0.00038231,2]
[421537817,1777834241000,-308.80035792,0.00038231,2]
[421537818,1777834241000,-862.2151725,0.00038231,2]
[421537819,1777834241000,-310.10110385,0.00038231,2]
[421537820,1777834241000,-462.67536322,0.00038231,2]
[421537823,1777834241000,-450.74402986,0.00038231,2]
[421537825,1777834241000,-300.0,0.00038231,2]
[421537828,1777834241000,-300.0,0.00038231,2]
[421537816,1777834241000,-1144.24336667,0.00038231,2]
[421537822,1777834241000,-433.53989763,0.00038231,2]
[421537821,1777834241000,-422.73106224,0.00038231,2]
[421537827,1777834241000,-300.0,0.00038231,2]
[421537832,1777834241000,-309.0528839,0.00038231,2]
[421537760,1777834241000,-300.0,0.00038231,2]
[421537815,1777834241000,-437.10258287,0.00038231,2]
[421537802,1777834241000,-526.39557632,0.00038231,2]
[421537830,1777834241000,-482.8546576,0.00038231,2]
[421537801,1777834241000,-300.0,0.00038231,2]
[421537765,1777834241000,-724.19402235,0.00038231,2]
[421537776,1777834241000,-1144.24336667,0.00038231,2]
[421537766,1777834241000,-301.02040482,0.00038231,2]
[421537775,1777834241000,-300.0,0.00038231,2]
[421537769,1777834241000,-300.0,0.00038231,2]
[421537774,1777834241000,-343.10293342,0.00038231,2]
[421537767,1777834241000,-300.0,0.00038231,2]
[421537768,1777834241000,-300.0,0.00038231,2]
[421537799,1777834241000,-602.92697109,0.00038231,2]
[421537770,1777834241000,-300.0,0.00038231,2]
[421537773,1777834241000,-368.46643796,0.00038231,2]
[421537771,1777834241000,-852.02203048,0.00038231,2]
[421537779,1777834241000,-310.10110385,0.00038231,2]
[421537777,1777834241000,-308.80035792,0.00038231,2]
[421537772,1777834241000,-1791.83489269,0.00038231,2]
[421537789,1777834241000,-309.0528839,0.00038231,2]
[421537791,1777834241000,-300.0,0.00038231,2]
[421537778,1777834241000,-862.2151725,0.00038231,2]
[421537796,1777834241000,-491.42621558,0.00038231,2]
[421537797,1777834241000,-300.0,0.00038231,2]
[421537795,1777834241000,-300.0,0.00038231,2]
[421537787,1777834241000,-482.8546576,0.00038231,2]
[421537793,1777834241000,-1091.89164942,0.00038231,2]
[421537784,1777834241000,-300.0,0.00038231,2]
[421537785,1777834241000,-300.0,0.00038231,2]
[421537786,1777834241000,-300.0,0.00038231,2]
[421537782,1777834241000,-433.53989763,0.00038231,2]
[421537781,1777834241000,-300.0,0.00038231,2]
[421537780,1777834241000,-462.67536322,0.00038231,2]
[421537783,1777834241000,-450.74402986,0.00038231,2]
[421537895,1777834242000,-724.19402235,0.00038231,2]
[421537890,1777834242000,-300.0,0.00038231,2]
[421537889,1777834242000,-602.92697109,0.00038231,2]
[421537894,1777834242000,-308.86043429,0.00038231,2]
[421537884,1777834242000,-300.0,0.00038231,2]
[421537878,1777834242000,-450.74402986,0.00038231,2]
[421537888,1777834242000,-300.0,0.00038231,2]
[421537885,1777834242000,-1091.89164942,0.00038231,2]
[421537886,1777834242000,-300.0,0.00038231,2]
[421537883,1777834242000,-482.8546576,0.00038231,2]
[421537887,1777834242000,-491.42621558,0.00038231,2]
[421537891,1777834242000,-526.39557632,0.00038231,2]
[421537904,1777834242000,-1000.0,0.00038491,90]
[421537892,1777834242000,-1064.20055128,0.00038231,2]
[421537897,1777834242000,-300.0,0.00038231,2]
[421537908,1777834242000,-1000.0,0.00038502,90]
[421537912,1777834242000,-1000.0,0.00038534,90]
[421537911,1777834242000,-8883.18881903,0.00038527,2]
[421537898,1777834242000,-151.0,0.00038231,7]
[421537902,1777834242000,-1000.0,0.0003846,90]
[421537906,1777834242000,-12821.8304,0.000385,120]
[421537910,1777834242000,-1000.0,0.00038526,90]
[421537900,1777834242000,-2016.79,0.00038291,2]
[421537896,1777834242000,-301.02040482,0.00038231,2]
[421537899,1777834242000,-151.0,0.00038231,7]
[421537901,1777834242000,-150.0,0.00038374,7]
[421537882,1777834242000,-309.0528839,0.00038231,2]
[421537893,1777834242000,-891.13316488,0.00038231,2]
[421537881,1777834242000,-300.0,0.00038231,2]
[421537860,1777834242000,-724.19402235,0.00038231,2]
[421537880,1777834242000,-300.0,0.00038231,2]
[421537913,1777834242000,-1000.0,0.00038539,90]
[421537842,1777834242000,-300.0,0.00038231,2]
[421537844,1777834242000,-491.42621558,0.00038231,2]
[421537848,1777834242000,-602.92697109,0.00038231,2]
[421537834,1777834242000,-303.81189705,0.00038231,2]
[421537846,1777834242000,-300.0,0.00038231,2]
[421537838,1777834242000,-1091.89164942,0.00038231,2]
[421537836,1777834242000,-300.0,0.00038231,2]
[421537852,1777834242000,-526.39557632,0.00038231,2]
[421537850,1777834242000,-300.0,0.00038231,2]
[421537840,1777834242000,-495.82660331,0.00038231,2]
[421537866,1777834242000,-300.0,0.00038231,2]
[421537867,1777834242000,-304.49722272,0.00038231,2]
[421537879,1777834242000,-519.34376895,0.00038231,2]
[421537868,1777834242000,-300.0,0.00038231,2]
[421537856,1777834242000,-891.13316488,0.00038231,2]
[421537858,1777834242000,-308.86043429,0.00038231,2]
[421537871,1777834242000,-343.10293342,0.00038231,2]
[421537854,1777834242000,-1064.20055128,0.00038231,2]
[421537864,1777834242000,-300.0,0.00038231,2]
[421537869,1777834242000,-852.02203048,0.00038231,2]
[421537870,1777834242000,-1791.83489269,0.00038231,2]
[421537873,1777834242000,-308.80035792,0.00038231,2]
[421537874,1777834242000,-862.2151725,0.00038231,2]
[421537872,1777834242000,-1144.24336667,0.00038231,2]
[421537875,1777834242000,-310.10110385,0.00038231,2]
[421537876,1777834242000,-462.67536322,0.00038231,2]
[421537877,1777834242000,-433.53989763,0.00038231,2]
[421537862,1777834242000,-301.02040482,0.00038231,2]
[421537915,1777834242000,-1000.0,0.00038588,90]
[421537960,1777834242000,-151.0,0.000389,7]
[421537917,1777834242000,-13436.6,0.000386,7]
[421537959,1777834242000,-1534.0,0.000389,7]
[421537958,1777834242000,-151.0,0.000389,7]
[421537970,1777834242000,-486.28629411,0.000389,2]
[421537918,1777834242000,-1000.0,0.00038621,90]
[421537972,1777834242000,-1751.24407,0.000389,107]
[421537975,1777834242000,-274.930017,0.000389,30]
[421537979,1777834242000,-151.51439394,0.00038942,120]
[421537977,1777834242000,-274.930017,0.000389,30]
[421537971,1777834242000,-165.341426,0.000389,30]
[421537984,1777834242000,-200.36994545,0.00039,2]
[421537986,1777834242000,-635.76,0.00039,30]
[421537987,1777834242000,-167.02945952,0.00039064,2]
[421537983,1777834242000,-9826.83005532,0.00039,5]
[421537968,1777834242000,-151.0,0.000389,7]
[421537981,1777834242000,-31216.38788236,0.00039,2]
[421537989,1777834242000,-2109.08781292,0.00039102,2]
[421537999,1777834242000,-157.4281397,0.00039419,5]
[421537990,1777834242000,-2016.79,0.00039105,2]
[421537991,1777834242000,-150.0,0.00039173,7]
[421537992,1777834242000,-500.0,0.000392,2]
[421537988,1777834242000,-1751.24407,0.000391,107]
[421537994,1777834242000,-2129.826,0.00039287,2]
[421537996,1777834242000,-2016.79,0.00039377,2]
[421537993,1777834242000,-151.51439394,0.00039216,120]
[421537998,1777834242000,-350.0,0.00039403,2]
[421537995,1777834242000,-1751.24407,0.000393,107]
[421537997,1777834242000,-322.01291511,0.000394,2]
[421538000,1777834242000,-151.51439394,0.0003949,120]
[421537985,1777834242000,-562.06,0.00039,30]
[421537969,1777834242000,-241.26935684,0.000389,7]
[421537973,1777834242000,-274.930017,0.000389,30]
[421537963,1777834242000,-1534.0,0.000389,7]
[421537916,1777834242000,-1000.0,0.00038599,90]
[421537925,1777834242000,-1000.0,0.00038667,90]
[421537920,1777834242000,-1000.0,0.00038632,90]
[421537914,1777834242000,-2016.79,0.00038562,2]
[421537923,1777834242000,-2129.826,0.00038653,2]
[421537930,1777834242000,-1000.0,0.00038694,90]
[421537932,1777834242000,-151.0,0.00038697,14]
[421537929,1777834242000,-1000.0,0.0003869,90]
[421537957,1777834242000,-1534.0,0.000389,7]
[421537927,1777834242000,-1000.0,0.0003868,90]
[421537934,1777834242000,-1943.0920405,0.000387,2]
[421537937,1777834242000,-157.6206998,0.000387,2]
[421537939,1777834242000,-151.0,0.000387,30]
[421537945,1777834242000,-250.0,0.000388,54]
[421537928,1777834242000,-1000.0,0.00038685,90]
[421537943,1777834242000,-161.0,0.0003878,120]
[421537941,1777834242000,-151.0,0.000387,30]
[421537964,1777834242000,-169.91787475,0.000389,7]
[421537965,1777834242000,-1184.58048992,0.000389,7]
[421537967,1777834242000,-151.0,0.000389,7]
[421537962,1777834242000,-151.0,0.000389,7]
[421537961,1777834242000,-1534.0,0.000389,7]
[421537966,1777834242000,-151.0,0.000389,7]
[421537953,1777834242000,-162.89365812,0.000389,2]
[421537955,1777834242000,-1534.0,0.000389,7]
[421537949,1777834242000,-2016.79,0.00038834,2]
[421537956,1777834242000,-151.0,0.000389,7]
[421537947,1777834242000,-250.0,0.000388,54]
[421537951,1777834242000,-66738.4422332,0.000389,2]
[421538008,1777834243000,-274.930017,0.000395,30]
[421538009,1777834243000,-1351.0,0.00039616,2]
[421538003,1777834243000,-1751.24407,0.000395,107]
[421538007,1777834243000,-274.930017,0.000395,30]
[421538005,1777834243000,-273.001364,0.000395,30]
[421538002,1777834243000,-237933.79522601,0.000395,2]
[421538011,1777834243000,-157.4281397,0.00039693,5]
[421538001,1777834243000,-151.0,0.00039497,14]
[421538006,1777834243000,-274.930017,0.000395,30]
[421538004,1777834243000,-151.0,0.000395,30]
[421538010,1777834243000,-2016.79,0.00039649,2]
[421538017,1777834243000,-500.0,0.00039719,2]
[421538015,1777834243000,-500.0,0.00039719,2]
[421538013,1777834243000,-1751.24408,0.000397,107]
[421538024,1777834243000,-500.0,0.00039719,2]
[421538020,1777834243000,-500.0,0.00039719,2]
[421538016,1777834243000,-500.0,0.00039719,2]
[421538018,1777834243000,-500.0,0.00039719,2]
[421538022,1777834243000,-500.0,0.00039719,2]
[421538021,1777834243000,-500.0,0.00039719,2]
[421538029,1777834243000,-500.0,0.00039719,2]
[421538014,1777834243000,-500.0,0.00039719,2]
[421538012,1777834243000,-13436.6,0.000397,7]
[421538019,1777834243000,-500.0,0.00039719,2]
[421538121,1777834245000,-510.0,0.0004013,2]
[421538120,1777834245000,-152.0,0.0004012,4]
[421538118,1777834245000,-562.06,0.000401,30]
[421538123,1777834245000,-203.80380359,0.000402,30]
[421538122,1777834245000,-203.8038036,0.000402,30]
[421538114,1777834245000,-151.0,0.0004,30]
[421538112,1777834245000,-635.76,0.0004,30]
[421538124,1777834245000,-150.2864658,0.00040223,2]
[421538128,1777834245000,-266.0,0.00040269,2]
[421538110,1777834245000,-161.0,0.0004,120]
[421538125,1777834245000,-157.4281397,0.00040241,5]
[421538126,1777834245000,-292.0,0.00040269,2]
[421538127,1777834245000,-150.0,0.00040269,2]
[421538108,1777834245000,-400.39728075,0.0004,2]
[421538130,1777834245000,-996.66000024,0.00040275,8]
[421538132,1777834245000,-300.0,0.00040279,2]
[421538116,1777834245000,-151.51439394,0.00040038,120]
[421538101,1777834245000,-314.22527791,0.0004,2]
[421538102,1777834245000,-318.89159732,0.0004,2]
[421538106,1777834245000,-383.26855387,0.0004,30]
[421538088,1777834245000,-1079.3352193,0.00033616,2]
[421538089,1777834245000,-300.0,0.00038231,2]
[421538090,1777834245000,-274.930017,0.000389,30]
[421538091,1777834245000,-274.930017,0.000395,30]
[421538092,1777834245000,-274.930017,0.00039995,30]
[421538093,1777834245000,-1961.33594487,0.0004,15]
[421538094,1777834245000,-193.61243865,0.0004,2]
[421538105,1777834245000,-10100.0,0.0004,60]
[421538096,1777834245000,-30829.66770808,0.0004,2]
[421538097,1777834245000,-395.52676232,0.0004,2]
[421538098,1777834245000,-24076.65561087,0.0004,2]
[421538103,1777834245000,-10835.32109606,0.0004,2]
[421538133,1777834245000,-300.0,0.00040279,2]
[421538104,1777834245000,-514.46893361,0.0004,2]
[421538099,1777834245000,-1582.44036541,0.0004,2]
[421538100,1777834245000,-4165.98674239,0.0004,2]
[421538095,1777834245000,-20339.78283492,0.0004,7]
[421538135,1777834245000,-300.0,0.00040279,2]
[421538129,1777834245000,-500.1,0.00040275,8]
[421538134,1777834245000,-300.0,0.00040279,2]
[421538158,1777834245000,-13436.6,0.000407,7]
[421538167,1777834245000,-274.930017,0.000409,30]
[421538157,1777834245000,-517.15799466,0.0004069,2]
[421538156,1777834245000,-151.51439394,0.00040586,120]
[421538160,1777834245000,-157.4281397,0.00040789,5]
[421538161,1777834245000,-588.98,0.000408,90]
[421538162,1777834245000,-151.51439394,0.0004086,120]
[421538131,1777834245000,-300.0,0.00040279,2]
[421538165,1777834245000,-635.76,0.000409,30]
[421538159,1777834245000,-251.08160484,0.00040701,120]
[421538164,1777834245000,-100480.0,0.000409,30]
[421538163,1777834245000,-322.0129151,0.0004087,120]
[421538169,1777834245000,-274.930008,0.000409,30]
[421538168,1777834245000,-274.930017,0.000409,30]
[421538171,1777834245000,-215.0,0.00040946,2]
[421538172,1777834245000,-145486.4156797,0.0004095,60]
[421538170,1777834245000,-241.0,0.00040946,2]
[421538154,1777834245000,-157.4281397,0.00040515,5]
[421538153,1777834245000,-1827.05,0.000405,2]
[421538166,1777834245000,-274.930017,0.000409,30]
[421538151,1777834245000,-21604.2,0.000405,2]
[421538155,1777834245000,-250.0,0.0004058,78]
[421538137,1777834245000,-300.0,0.00040279,2]
[421538136,1777834245000,-300.0,0.00040279,2]
[421538138,1777834245000,-300.0,0.00040279,2]
[421538140,1777834245000,-450.0,0.00040297,2]
[421538143,1777834245000,-1200.0,0.00040356,21]
[421538141,1777834245000,-251.08160484,0.00040298,120]
[421538139,1777834245000,-416.89,0.00040279,2]
[421538142,1777834245000,-151.51439394,0.00040312,120]
[421538145,1777834245000,-614.96052181,0.00040356,21]
[421538144,1777834245000,-500.0,0.00040356,21]
[421538152,1777834245000,-844.64,0.000405,2]
[421538149,1777834245000,-2272.69,0.00040419,120]
[421538150,1777834245000,-251.08160484,0.000405,120]
[421538147,1777834245000,-818.5,0.000404,30]
[421538146,1777834245000,-150.0,0.00040374,30]
[421538148,1777834245000,-227.39,0.00040419,120]
[421538193,1777834246000,-7954.65087534,0.00041,30]
[421538183,1777834246000,-9819.82508241,0.0004095,60]
[421538192,1777834246000,-57806.60034327,0.00041,5]
[421538190,1777834246000,-354.0,0.00041,7]
[421538189,1777834246000,-9433.95291507,0.00041,30]
[421538186,1777834246000,-400.0,0.00040997,2]
[421538184,1777834246000,-151.0,0.0004095,30]
[421538185,1777834246000,-350.0,0.00040992,2]
[421538182,1777834246000,-5922.12587935,0.00038527,2]
[421538174,1777834246000,-241.75690735,0.0004095,60]
[421538180,1777834246000,-985.88753101,0.00038231,2]
[421538178,1777834246000,-258.50736168,0.00038231,2]
[421538179,1777834246000,-547.44,0.00038231,2]
[421538177,1777834246000,-4300.0,0.0004095,60]
[421538176,1777834246000,-200.0,0.00037877,2]
[421538175,1777834246000,-299.00233054,0.0004095,60]
[421538173,1777834246000,-852.02203048,0.00038231,2]
[421538188,1777834246000,-168.31,0.00041,2]
[421538181,1777834246000,-343.10293342,0.00038231,2]
[421538191,1777834246000,-1551.04,0.00041,30]
[421538208,1777834246000,-151.0,0.00041096,120]
[421538205,1777834246000,-151.0,0.00041096,120]
[421538213,1777834246000,-151.0,0.00041096,120]
[421538210,1777834246000,-151.0,0.00041096,120]
[421538211,1777834246000,-151.0,0.00041096,120]
[421538214,1777834246000,-151.0,0.00041096,120]
[421538216,1777834246000,-151.0,0.00041096,120]
[421538215,1777834246000,-151.0,0.00041096,120]
[421538206,1777834246000,-151.0,0.00041096,120]
[421538187,1777834246000,-400.0,0.00040997,2]
[421538203,1777834246000,-194.934783,0.00041096,120]
[421538204,1777834246000,-151.0,0.00041096,120]
[421538198,1777834246000,-151.0,0.00041096,120]
[421538196,1777834246000,-157.4281397,0.00041063,5]